[Event "Early-Titled-Tuesday-Blitz-February-13-2024"]
[Site "Chess.com"]
[Date "2024.02.13"]
[Round "1"]
[White "JEIGOTH"]
[Black "Bykov_Egor"]
[Result "0-1"]
[WhiteElo "2159"]
[BlackElo "2585"]
[TimeControl "180+1"]
[EndTime "8:02:14 PST"]
[Termination "Bykov_Egor won by resignation"]

1. d4 {[%clk 0:03:00.9]} 1... Nf6 {[%clk 0:02:59.9]} 2. Nf3 {[%clk 0:03:01.1]}
2... g6 {[%clk 0:03:00.5]} 3. e3 {[%clk 0:03:01.4]} 3... Bg7 {[%clk 0:03:01.1]}
4. c3 {[%clk 0:02:54.2]} 4... d6 {[%clk 0:03:00.2]} 5. Bd3 {[%clk 0:02:47.5]}
5... Nbd7 {[%clk 0:02:57.8]} 6. Nbd2 {[%clk 0:02:47.3]} 6... e5 {[%clk
0:02:57.8]} 7. O-O {[%clk 0:02:45.2]} 7... O-O {[%clk 0:02:56.8]} 8. Qe2 {[%clk
0:02:35.6]} 8... Re8 {[%clk 0:02:56.6]} 9. e4 {[%clk 0:02:34.6]} 9... Nh5 {[%clk
0:02:53.2]} 10. dxe5 {[%clk 0:02:23.8]} 10... Nf4 {[%clk 0:02:50.8]} 11. Qe3
{[%clk 0:02:23.9]} 11... Bh6 {[%clk 0:02:44.1]} 12. Qd4 {[%clk 0:02:14.4]} 12...
dxe5 {[%clk 0:02:42.9]} 13. Qc4 {[%clk 0:02:04.9]} 13... Nb6 {[%clk 0:02:42.6]}
0-1

[Event "Early-Titled-Tuesday-Blitz-February-13-2024"]
[Site "Chess.com"]
[Date "2024.02.13"]
[Round "1"]
[White "aghasiyevkamal"]
[Black "kiwibobo"]
[Result "1-0"]
[WhiteElo "2632"]
[BlackElo "2284"]
[TimeControl "180+1"]
[EndTime "8:02:29 PST"]
[Termination "aghasiyevkamal won by resignation"]

1. d4 {[%clk 0:02:58.6]} 1... Nf6 {[%clk 0:03:00.3]} 2. c4 {[%clk 0:02:58.2]}
2... g6 {[%clk 0:03:00.8]} 3. Nc3 {[%clk 0:02:58]} 3... d5 {[%clk 0:03:01.5]} 4.
cxd5 {[%clk 0:02:57.3]} 4... Nxd5 {[%clk 0:03:02.4]} 5. e4 {[%clk 0:02:57.6]}
5... Nxc3 {[%clk 0:03:02.9]} 6. bxc3 {[%clk 0:02:58.1]} 6... Bg7 {[%clk
0:03:03.3]} 7. Bc4 {[%clk 0:02:57.7]} 7... c5 {[%clk 0:03:02.4]} 8. Ne2 {[%clk
0:02:57.7]} 8... Nc6 {[%clk 0:03:03.1]} 9. Be3 {[%clk 0:02:57.7]} 9... O-O
{[%clk 0:03:03.3]} 10. O-O {[%clk 0:02:55.7]} 10... cxd4 {[%clk 0:03:04]} 11.
cxd4 {[%clk 0:02:52.7]} 11... b6 {[%clk 0:03:03.6]} 12. Rc1 {[%clk 0:02:51]}
12... Bb7 {[%clk 0:03:03.5]} 13. Bd5 {[%clk 0:02:46.1]} 13... Rc8 {[%clk
0:03:02.5]} 14. Qa4 {[%clk 0:02:45.8]} 14... Qd6 {[%clk 0:02:56]} 15. Rfd1
{[%clk 0:02:38.1]} 15... e6 {[%clk 0:02:55.4]} 16. Bf4 {[%clk 0:02:20.9]} 16...
Qd8 {[%clk 0:02:44.2]} 17. Bxc6 {[%clk 0:02:19.1]} 17... Bxc6 {[%clk 0:02:43.8]}
18. Rxc6 {[%clk 0:02:19]} 18... Rxc6 {[%clk 0:02:44.6]} 19. Qxc6 {[%clk
0:02:18.7]} 19... e5 {[%clk 0:02:45.5]} 20. Be3 {[%clk 0:02:16.4]} 20... exd4
{[%clk 0:02:45.6]} 21. Bxd4 {[%clk 0:02:08]} 21... Re8 {[%clk 0:02:42.3]} 22. f3
{[%clk 0:02:06.5]} 22... Qg5 {[%clk 0:02:40]} 23. Qxe8+ {[%clk 0:02:04.2]} 1-0

[Event "Early-Titled-Tuesday-Blitz-February-13-2024"]
[Site "Chess.com"]
[Date "2024.02.13"]
[Round "1"]
[White "Andrej2004"]
[Black "Alblooshi_Hamad"]
[Result "1-0"]
[WhiteElo "2602"]
[BlackElo "2221"]
[TimeControl "180+1"]
[EndTime "8:02:40 PST"]
[Termination "Andrej2004 won by checkmate"]

1. Nf3 {[%clk 0:03:00.9]} 1... Nf6 {[%clk 0:03:00]} 2. b3 {[%clk 0:02:55.6]}
2... c5 {[%clk 0:02:56.3]} 3. Bb2 {[%clk 0:02:55.9]} 3... Nc6 {[%clk 0:02:56.1]}
4. c4 {[%clk 0:02:55.7]} 4... b6 {[%clk 0:02:56.1]} 5. g3 {[%clk 0:02:55.9]}
5... Bb7 {[%clk 0:02:56.3]} 6. Bg2 {[%clk 0:02:56.7]} 6... g6 {[%clk 0:02:54.3]}
7. O-O {[%clk 0:02:57.2]} 7... Bg7 {[%clk 0:02:54.6]} 8. Nc3 {[%clk 0:02:57.9]}
8... O-O {[%clk 0:02:54.1]} 9. e3 {[%clk 0:02:58.1]} 9... d6 {[%clk 0:02:53.9]}
10. d4 {[%clk 0:02:58.1]} 10... cxd4 {[%clk 0:02:53.6]} 11. exd4 {[%clk
0:02:57.9]} 11... e6 {[%clk 0:02:54.1]} 12. Qd2 {[%clk 0:02:56.2]} 12... Rc8
{[%clk 0:02:52.5]} 13. Rfe1 {[%clk 0:02:56.7]} 13... a6 {[%clk 0:02:49.4]} 14.
d5 {[%clk 0:02:54.2]} 14... exd5 {[%clk 0:02:46.6]} 15. Nxd5 {[%clk 0:02:50]}
15... Nxd5 {[%clk 0:02:44.5]} 16. Bxg7 {[%clk 0:02:48.3]} 16... Kxg7 {[%clk
0:02:44.6]} 17. Qxd5 {[%clk 0:02:39.1]} 17... Qf6 {[%clk 0:02:43.8]} 18. Rad1
{[%clk 0:02:35.8]} 18... Rfd8 {[%clk 0:02:43.2]} 19. Ng5 {[%clk 0:02:30.4]}
19... Ba8 {[%clk 0:02:36.8]} 20. Ne4 {[%clk 0:02:25.4]} 20... Qb2 {[%clk
0:02:25.6]} 21. Nxd6 {[%clk 0:02:20.9]} 21... Qxa2 {[%clk 0:02:20.5]} 22. Qxf7+
{[%clk 0:02:17.3]} 22... Kh8 {[%clk 0:02:18.7]} 23. Qf6+ {[%clk 0:02:16]} 23...
Kg8 {[%clk 0:02:18.4]} 24. Bd5# {[%clk 0:02:15.5]} 1-0

[Event "Early-Titled-Tuesday-Blitz-February-13-2024"]
[Site "Chess.com"]
[Date "2024.02.13"]
[Round "1"]
[White "Ati1517"]
[Black "PabloZarnicki"]
[Result "0-1"]
[WhiteElo "2255"]
[BlackElo "2616"]
[TimeControl "180+1"]
[EndTime "8:02:48 PST"]
[Termination "PabloZarnicki won by resignation"]

1. e4 {[%clk 0:02:59.8]} 1... e6 {[%clk 0:02:44.6]} 2. d4 {[%clk 0:02:59.2]}
2... d5 {[%clk 0:02:44.3]} 3. Nd2 {[%clk 0:02:59.5]} 3... Nc6 {[%clk 0:02:43.4]}
4. c3 {[%clk 0:02:56.6]} 4... e5 {[%clk 0:02:33.1]} 5. Ngf3 {[%clk 0:02:45.5]}
5... exd4 {[%clk 0:02:22.1]} 6. cxd4 {[%clk 0:02:46.4]} 6... Bg4 {[%clk
0:02:16.2]} 7. Bb5 {[%clk 0:02:36.6]} 7... dxe4 {[%clk 0:01:50.9]} 8. Nxe4
{[%clk 0:02:32.1]} 8... Qd5 {[%clk 0:01:49.7]} 9. Nc3 {[%clk 0:02:31.2]} 9...
Bb4 {[%clk 0:01:38.6]} 10. Qb3 {[%clk 0:02:26.7]} 10... Qxb5 {[%clk 0:01:35]}
0-1

[Event "Early-Titled-Tuesday-Blitz-February-13-2024"]
[Site "Chess.com"]
[Date "2024.02.13"]
[Round "1"]
[White "kunaevchess"]
[Black "Korona_91"]
[Result "0-1"]
[WhiteElo "2349"]
[BlackElo "2676"]
[TimeControl "180+1"]
[EndTime "8:02:53 PST"]
[Termination "Korona_91 won by resignation"]

1. d4 {[%clk 0:03:00.9]} 1... Nf6 {[%clk 0:02:59.4]} 2. Nf3 {[%clk 0:03:01.1]}
2... g6 {[%clk 0:02:59.4]} 3. Nc3 {[%clk 0:02:59.9]} 3... Bg7 {[%clk 0:02:59.9]}
4. e4 {[%clk 0:02:58.7]} 4... d6 {[%clk 0:03:00.5]} 5. Bf4 {[%clk 0:02:55.1]}
5... c6 {[%clk 0:03:00.6]} 6. Qd2 {[%clk 0:02:55.2]} 6... O-O {[%clk 0:02:55]}
7. Bh6 {[%clk 0:02:54.5]} 7... d5 {[%clk 0:02:31]} 8. Bxg7 {[%clk 0:02:45.8]}
8... Kxg7 {[%clk 0:02:31.9]} 9. Bd3 {[%clk 0:02:45.8]} 9... dxe4 {[%clk
0:02:27.8]} 10. Nxe4 {[%clk 0:02:44.4]} 10... Nxe4 {[%clk 0:02:27.6]} 11. Bxe4
{[%clk 0:02:45.3]} 11... Nd7 {[%clk 0:02:28]} 12. h4 {[%clk 0:02:45]} 12... Nf6
{[%clk 0:02:27.7]} 13. Bd3 {[%clk 0:02:45.4]} 13... Bg4 {[%clk 0:02:27.6]} 14.
Be2 {[%clk 0:02:43]} 14... Bxf3 {[%clk 0:02:19.5]} 15. Bxf3 {[%clk 0:02:43.9]}
15... h5 {[%clk 0:02:19.9]} 16. O-O-O {[%clk 0:02:43.2]} 16... Qd6 {[%clk
0:02:15.3]} 17. Qg5 {[%clk 0:02:37.5]} 17... Rad8 {[%clk 0:01:55.3]} 18. c3
{[%clk 0:02:34.3]} 18... Rh8 {[%clk 0:01:53]} 19. Rhe1 {[%clk 0:02:33.5]} 19...
e6 {[%clk 0:01:53.1]} 20. Qe5 {[%clk 0:02:33.3]} 20... Qxe5 {[%clk 0:01:48.8]}
21. Rxe5 {[%clk 0:02:34.2]} 21... Rd6 {[%clk 0:01:43.6]} 22. Rde1 {[%clk
0:02:33.4]} 22... Rhd8 {[%clk 0:01:43.6]} 0-1

[Event "Early-Titled-Tuesday-Blitz-February-13-2024"]
[Site "Chess.com"]
[Date "2024.02.13"]
[Round "1"]
[White "inagreV"]
[Black "cyrdap"]
[Result "1-0"]
[WhiteElo "2339"]
[BlackElo "2640"]
[TimeControl "180+1"]
[EndTime "8:02:57 PST"]
[Termination "inagreV won by resignation"]

1. e4 {[%clk 0:03:00.9]} 1... d6 {[%clk 0:02:59.8]} 2. d4 {[%clk 0:03:00.6]}
2... Nf6 {[%clk 0:03:00.2]} 3. Nc3 {[%clk 0:03:00.3]} 3... e5 {[%clk 0:02:59.9]}
4. dxe5 {[%clk 0:02:59.8]} 4... dxe5 {[%clk 0:02:59.7]} 5. Qxd8+ {[%clk
0:03:00.7]} 5... Kxd8 {[%clk 0:02:59.9]} 6. Bc4 {[%clk 0:03:01.6]} 6... Be6
{[%clk 0:03:00.1]} 7. Bxe6 {[%clk 0:03:01.4]} 7... fxe6 {[%clk 0:03:00.5]} 8. f3
{[%clk 0:03:00.6]} 8... Bd6 {[%clk 0:03:00.8]} 9. Be3 {[%clk 0:03:00.3]} 9...
Nbd7 {[%clk 0:03:01.2]} 10. Nh3 {[%clk 0:02:58.6]} 10... Ke7 {[%clk 0:03:01.3]}
11. Nf2 {[%clk 0:02:58.6]} 11... a6 {[%clk 0:03:01.7]} 12. Nd3 {[%clk
0:02:53.6]} 12... b5 {[%clk 0:02:56.1]} 13. a4 {[%clk 0:02:53.1]} 13... b4
{[%clk 0:02:56.2]} 14. Nb1 {[%clk 0:02:53.3]} 14... c5 {[%clk 0:02:49.7]} 15.
Nd2 {[%clk 0:02:52.6]} 15... Rhc8 {[%clk 0:02:48.7]} 16. Nc4 {[%clk 0:02:52.2]}
16... Rab8 {[%clk 0:02:48.8]} 17. a5 {[%clk 0:02:32.7]} 17... Rc6 {[%clk
0:02:38.4]} 18. Ke2 {[%clk 0:02:29.5]} 18... Bc7 {[%clk 0:02:38.3]} 19. Rhd1
{[%clk 0:02:27.7]} 19... Rb5 {[%clk 0:02:38]} 20. b3 {[%clk 0:02:25.7]} 20... h6
{[%clk 0:02:31.4]} 21. Bf2 {[%clk 0:02:24.5]} 21... Ne8 {[%clk 0:02:28.7]} 22.
Bg3 {[%clk 0:02:23.1]} 22... Nd6 {[%clk 0:02:10.4]} 23. Ncxe5 {[%clk 0:02:15.5]}
23... Nxe5 {[%clk 0:02:09.2]} 24. Nxe5 {[%clk 0:02:15.4]} 1-0

[Event "Early-Titled-Tuesday-Blitz-February-13-2024"]
[Site "Chess.com"]
[Date "2024.02.13"]
[Round "1"]
[White "Irishchessman16"]
[Black "vladislavkovalev"]
[Result "1-0"]
[WhiteElo "2505"]
[BlackElo "2862"]
[TimeControl "180+1"]
[EndTime "8:03:02 PST"]
[Termination "Irishchessman16 won by resignation"]

1. d4 {[%clk 0:03:00.2]} 1... Nf6 {[%clk 0:02:59.8]} 2. Nf3 {[%clk 0:02:54.5]}
2... d5 {[%clk 0:02:58.1]} 3. c4 {[%clk 0:02:37.9]} 3... e6 {[%clk 0:02:57.3]}
4. Nc3 {[%clk 0:02:31.4]} 4... dxc4 {[%clk 0:02:57.2]} 5. e3 {[%clk 0:02:30]}
5... a6 {[%clk 0:02:56.3]} 6. a4 {[%clk 0:02:27.8]} 6... b6 {[%clk 0:02:56.7]}
7. Bxc4 {[%clk 0:02:27.1]} 7... Bb7 {[%clk 0:02:57.2]} 8. O-O {[%clk 0:02:26.9]}
8... Nbd7 {[%clk 0:02:56.3]} 9. Qe2 {[%clk 0:02:26.4]} 9... Bd6 {[%clk
0:02:52.9]} 10. e4 {[%clk 0:02:20.9]} 10... e5 {[%clk 0:02:53.2]} 11. Bxf7+
{[%clk 0:02:12.3]} 11... Kxf7 {[%clk 0:02:51.7]} 12. Ng5+ {[%clk 0:02:11.7]}
12... Ke7 {[%clk 0:02:40.3]} 13. f4 {[%clk 0:01:55]} 1-0

[Event "Early-Titled-Tuesday-Blitz-February-13-2024"]
[Site "Chess.com"]
[Date "2024.02.13"]
[Round "1"]
[White "bascheyaro"]
[Black "ploxoi"]
[Result "1-0"]
[WhiteElo "2785"]
[BlackElo "2435"]
[TimeControl "180+1"]
[EndTime "8:03:08 PST"]
[Termination "bascheyaro won by resignation"]

1. d4 {[%clk 0:03:00.2]} 1... d5 {[%clk 0:02:58.7]} 2. Nf3 {[%clk 0:03:00]} 2...
e6 {[%clk 0:02:58.9]} 3. c4 {[%clk 0:02:59.9]} 3... c6 {[%clk 0:02:58.1]} 4. Nc3
{[%clk 0:02:59.9]} 4... dxc4 {[%clk 0:02:57.9]} 5. Bf4 {[%clk 0:03:00]} 5... b5
{[%clk 0:02:57.1]} 6. a4 {[%clk 0:03:00]} 6... Bb4 {[%clk 0:02:55.4]} 7. e3
{[%clk 0:02:57.1]} 7... Bb7 {[%clk 0:02:54.6]} 8. g3 {[%clk 0:02:56.5]} 8... Nf6
{[%clk 0:02:54.7]} 9. Bg2 {[%clk 0:02:56.5]} 9... O-O {[%clk 0:02:27.8]} 10. O-O
{[%clk 0:02:56.2]} 10... a6 {[%clk 0:02:28.3]} 11. Ne5 {[%clk 0:02:55.3]} 11...
Qc8 {[%clk 0:02:26.1]} 12. h4 {[%clk 0:02:51.6]} 12... Nbd7 {[%clk 0:02:24.9]}
13. h5 {[%clk 0:02:51.2]} 13... Nd5 {[%clk 0:02:20.9]} 14. Ne4 {[%clk
0:02:46.6]} 14... N7f6 {[%clk 0:02:18.2]} 15. h6 {[%clk 0:02:43.8]} 15... Nxe4
{[%clk 0:02:16.8]} 16. hxg7 {[%clk 0:02:43.7]} 16... Rd8 {[%clk 0:02:00.1]} 17.
Bxe4 {[%clk 0:02:38.6]} 17... Nf6 {[%clk 0:02:00.1]} 18. Bc2 {[%clk 0:02:30.3]}
18... Be7 {[%clk 0:01:54.5]} 19. Bg5 {[%clk 0:02:28.5]} 19... c5 {[%clk
0:01:53.2]} 20. Bxf6 {[%clk 0:02:27]} 20... Bxf6 {[%clk 0:01:52.8]} 21. Qh5
{[%clk 0:02:27.2]} 21... Bxg7 {[%clk 0:01:43.8]} 22. Bxh7+ {[%clk 0:02:24]} 1-0

[Event "Early-Titled-Tuesday-Blitz-February-13-2024"]
[Site "Chess.com"]
[Date "2024.02.13"]
[Round "1"]
[White "HanSchut"]
[Black "hakanazeri2"]
[Result "1-0"]
[WhiteElo "2268"]
[BlackElo "2598"]
[TimeControl "180+1"]
[EndTime "8:03:09 PST"]
[Termination "HanSchut won by resignation"]

1. e4 {[%clk 0:03:00.9]} 1... c5 {[%clk 0:02:57.9]} 2. Nf3 {[%clk 0:03:00.3]}
2... d6 {[%clk 0:02:58.2]} 3. d4 {[%clk 0:03:00.7]} 3... cxd4 {[%clk 0:02:57.9]}
4. Nxd4 {[%clk 0:03:01.6]} 4... e6 {[%clk 0:02:58.8]} 5. c4 {[%clk 0:03:01.2]}
5... a6 {[%clk 0:02:56.7]} 6. Nc3 {[%clk 0:03:01.7]} 6... Qc7 {[%clk 0:02:57]}
7. Be3 {[%clk 0:03:00.9]} 7... Nf6 {[%clk 0:02:57.3]} 8. Rc1 {[%clk 0:02:58.1]}
8... Be7 {[%clk 0:02:57.3]} 9. Be2 {[%clk 0:02:58]} 9... b6 {[%clk 0:02:57.6]}
10. O-O {[%clk 0:02:53.7]} 10... Bb7 {[%clk 0:02:57.1]} 11. f3 {[%clk
0:02:54.3]} 11... O-O {[%clk 0:02:56.1]} 12. Qd2 {[%clk 0:02:54.7]} 12... Rc8
{[%clk 0:02:52.2]} 13. Rfd1 {[%clk 0:02:54.5]} 13... Qd8 {[%clk 0:02:51.8]} 14.
Bf1 {[%clk 0:02:53.8]} 14... Nc6 {[%clk 0:02:47.5]} 15. Qf2 {[%clk 0:02:48.4]}
15... Ne5 {[%clk 0:02:28.5]} 16. b3 {[%clk 0:02:44.2]} 16... Nfd7 {[%clk
0:02:23.3]} 17. h3 {[%clk 0:02:42.3]} 17... Bh4 {[%clk 0:02:19.4]} 18. g3 {[%clk
0:02:35.1]} 18... Be7 {[%clk 0:02:11.6]} 19. f4 {[%clk 0:02:35.1]} 19... Nc6
{[%clk 0:01:56.4]} 20. Bg2 {[%clk 0:02:23.1]} 20... Nc5 {[%clk 0:01:50.3]} 21.
b4 {[%clk 0:02:15.4]} 21... Nxd4 {[%clk 0:01:43.4]} 1-0

[Event "Early-Titled-Tuesday-Blitz-February-13-2024"]
[Site "Chess.com"]
[Date "2024.02.13"]
[Round "1"]
[White "biostatistician"]
[Black "InadaC"]
[Result "1-0"]
[WhiteElo "2582"]
[BlackElo "2156"]
[TimeControl "180+1"]
[EndTime "8:03:17 PST"]
[Termination "biostatistician won by resignation"]

1. d4 {[%clk 0:02:59.9]} 1... Nf6 {[%clk 0:02:58.6]} 2. Nf3 {[%clk 0:03:00.8]}
2... e6 {[%clk 0:02:55.6]} 3. c4 {[%clk 0:03:01.1]} 3... d5 {[%clk 0:02:53]} 4.
Nc3 {[%clk 0:02:59.8]} 4... Bb4 {[%clk 0:02:52.1]} 5. e3 {[%clk 0:02:57.3]} 5...
O-O {[%clk 0:02:51.6]} 6. a3 {[%clk 0:02:56.9]} 6... Be7 {[%clk 0:02:49.5]} 7.
b4 {[%clk 0:02:55.8]} 7... b6 {[%clk 0:02:49]} 8. Bb2 {[%clk 0:02:56.1]} 8...
Bb7 {[%clk 0:02:48.5]} 9. c5 {[%clk 0:02:55.6]} 9... Nc6 {[%clk 0:02:45.8]} 10.
Bd3 {[%clk 0:02:50.1]} 10... Re8 {[%clk 0:02:43.5]} 11. O-O {[%clk 0:02:49.9]}
11... a5 {[%clk 0:02:38.8]} 12. b5 {[%clk 0:02:49]} 12... Na7 {[%clk 0:02:38]}
13. c6 {[%clk 0:02:48.5]} 13... Bc8 {[%clk 0:02:38.1]} 14. a4 {[%clk 0:02:48.5]}
14... Bd6 {[%clk 0:02:38.5]} 15. Ne5 {[%clk 0:02:42.2]} 15... h6 {[%clk
0:02:25.8]} 16. f4 {[%clk 0:02:41.8]} 16... Nh7 {[%clk 0:02:25]} 17. Qh5 {[%clk
0:02:41.9]} 17... Qe7 {[%clk 0:02:19.9]} 18. Rf3 {[%clk 0:02:38.9]} 18... Nf6
{[%clk 0:02:19.1]} 19. Qh4 {[%clk 0:02:36.7]} 19... Bxe5 {[%clk 0:02:16.2]} 20.
fxe5 {[%clk 0:02:36.1]} 20... Nh7 {[%clk 0:02:16.2]} 21. Qh5 {[%clk 0:02:30.1]}
21... Ng5 {[%clk 0:02:15.4]} 22. Rg3 {[%clk 0:02:29.3]} 22... Rf8 {[%clk
0:02:09.9]} 23. h4 {[%clk 0:02:29.3]} 23... Nh7 {[%clk 0:02:02.7]} 24. Ba3
{[%clk 0:02:29.2]} 24... Qd8 {[%clk 0:01:56.8]} 25. Qxh6 {[%clk 0:02:28.4]} 1-0

[Event "Early-Titled-Tuesday-Blitz-February-13-2024"]
[Site "Chess.com"]
[Date "2024.02.13"]
[Round "1"]
[White "AlmasRakhmatullaev"]
[Black "Mistango"]
[Result "1-0"]
[WhiteElo "2873"]
[BlackElo "2489"]
[TimeControl "180+1"]
[EndTime "8:03:19 PST"]
[Termination "AlmasRakhmatullaev won by resignation"]

1. e4 {[%clk 0:03:00.9]} 1... c5 {[%clk 0:02:59.1]} 2. Nf3 {[%clk 0:03:00.8]}
2... d6 {[%clk 0:02:59.7]} 3. d4 {[%clk 0:03:00.6]} 3... cxd4 {[%clk 0:03:00.6]}
4. Qxd4 {[%clk 0:03:01.4]} 4... Nc6 {[%clk 0:03:00.2]} 5. Bb5 {[%clk 0:03:01.3]}
5... Bd7 {[%clk 0:03:00.9]} 6. Bxc6 {[%clk 0:03:01.5]} 6... Bxc6 {[%clk
0:03:01.8]} 7. Nc3 {[%clk 0:03:02.1]} 7... e5 {[%clk 0:03:01.1]} 8. Qd3 {[%clk
0:02:59.4]} 8... h6 {[%clk 0:03:01.5]} 9. O-O {[%clk 0:02:51.7]} 9... Nf6 {[%clk
0:03:01.6]} 10. b3 {[%clk 0:02:43]} 10... Be7 {[%clk 0:03:01.6]} 11. Ba3 {[%clk
0:02:40.4]} 11... Qd7 {[%clk 0:02:53.6]} 12. Rad1 {[%clk 0:02:34.7]} 12... Rd8
{[%clk 0:02:53]} 13. Nd2 {[%clk 0:02:20.9]} 13... b5 {[%clk 0:02:48.9]} 14. Rfe1
{[%clk 0:01:58.9]} 14... O-O {[%clk 0:02:48.8]} 15. Nf1 {[%clk 0:01:53.3]} 15...
a5 {[%clk 0:02:44.4]} 16. Nd5 {[%clk 0:01:34.9]} 16... b4 {[%clk 0:02:17.6]} 17.
Bb2 {[%clk 0:01:30.1]} 17... Nxd5 {[%clk 0:02:14.2]} 18. exd5 {[%clk 0:01:30.3]}
18... Bb5 {[%clk 0:02:15]} 1-0

[Event "Early-Titled-Tuesday-Blitz-February-13-2024"]
[Site "Chess.com"]
[Date "2024.02.13"]
[Round "1"]
[White "VinzentSpitzl"]
[Black "Polish_fighter3000"]
[Result "0-1"]
[WhiteElo "2539"]
[BlackElo "3055"]
[TimeControl "180+1"]
[EndTime "8:03:26 PST"]
[Termination "Polish_fighter3000 won by resignation"]

1. e4 {[%clk 0:03:00]} 1... e5 {[%clk 0:02:58.1]} 2. Nf3 {[%clk 0:03:00.2]} 2...
Nc6 {[%clk 0:02:58.8]} 3. Bb5 {[%clk 0:03:00.4]} 3... a6 {[%clk 0:02:58.7]} 4.
Ba4 {[%clk 0:03:00.7]} 4... Nf6 {[%clk 0:02:59.4]} 5. O-O {[%clk 0:03:00.7]}
5... b5 {[%clk 0:02:59.5]} 6. Bb3 {[%clk 0:03:00.4]} 6... Bc5 {[%clk 0:03:00.2]}
7. c3 {[%clk 0:02:59.8]} 7... d6 {[%clk 0:02:59.9]} 8. a4 {[%clk 0:02:58.9]}
8... Bg4 {[%clk 0:02:57.8]} 9. h3 {[%clk 0:02:59.1]} 9... Bh5 {[%clk 0:02:57.6]}
10. g4 {[%clk 0:02:58.9]} 10... Bg6 {[%clk 0:02:51.2]} 11. d3 {[%clk 0:02:58.9]}
11... Rb8 {[%clk 0:02:49.3]} 12. Bg5 {[%clk 0:02:54.1]} 12... h6 {[%clk
0:02:36.9]} 13. Bh4 {[%clk 0:02:46]} 13... h5 {[%clk 0:02:36.8]} 14. Nbd2 {[%clk
0:02:29.5]} 14... hxg4 {[%clk 0:02:34.8]} 15. hxg4 {[%clk 0:02:29.7]} 15... Qd7
{[%clk 0:02:34.9]} 16. d4 {[%clk 0:02:11.7]} 16... Qxg4+ {[%clk 0:02:26.8]} 17.
Bg3 {[%clk 0:02:11.3]} 17... Nxe4 {[%clk 0:02:17.9]} 18. Nxe4 {[%clk 0:01:52.6]}
18... Bxe4 {[%clk 0:02:18.8]} 19. Nh2 {[%clk 0:01:53.1]} 19... Qh3 {[%clk
0:02:13.4]} 0-1

[Event "Early-Titled-Tuesday-Blitz-February-13-2024"]
[Site "Chess.com"]
[Date "2024.02.13"]
[Round "1"]
[White "Gennady_Kozlov"]
[Black "carloseduar100"]
[Result "1-0"]
[WhiteElo "2669"]
[BlackElo "2344"]
[TimeControl "180+1"]
[EndTime "8:03:30 PST"]
[Termination "Gennady_Kozlov won by resignation"]

1. b3 {[%clk 0:03:00.9]} 1... Nf6 {[%clk 0:02:59.1]} 2. Bb2 {[%clk 0:03:00.5]}
2... g6 {[%clk 0:03:00]} 3. e3 {[%clk 0:02:59.8]} 3... Bg7 {[%clk 0:03:00.5]} 4.
f4 {[%clk 0:02:59.7]} 4... d6 {[%clk 0:03:01.1]} 5. Nf3 {[%clk 0:02:59.1]} 5...
c5 {[%clk 0:03:01.5]} 6. Be2 {[%clk 0:02:58.1]} 6... Nc6 {[%clk 0:03:02.2]} 7.
O-O {[%clk 0:02:58.1]} 7... a6 {[%clk 0:03:03]} 8. a4 {[%clk 0:02:57.5]} 8...
Bg4 {[%clk 0:02:59.6]} 9. Na3 {[%clk 0:02:56.9]} 9... Nh5 {[%clk 0:02:41.5]} 10.
Bxg7 {[%clk 0:02:55.2]} 10... Nxg7 {[%clk 0:02:42.4]} 11. h3 {[%clk 0:02:54.4]}
11... Bxf3 {[%clk 0:02:40.5]} 12. Bxf3 {[%clk 0:02:55.3]} 12... Qd7 {[%clk
0:02:40.8]} 13. Nc4 {[%clk 0:02:54.5]} 13... Nf5 {[%clk 0:02:40.3]} 14. Nb6
{[%clk 0:02:48.9]} 14... Qd8 {[%clk 0:02:40.7]} 15. Nxa8 {[%clk 0:02:48.3]}
15... Qxa8 {[%clk 0:02:41.6]} 16. g4 {[%clk 0:02:44]} 16... Nh4 {[%clk
0:02:40.2]} 17. Bxc6+ {[%clk 0:02:43.1]} 17... bxc6 {[%clk 0:02:39.6]} 18. Qe1
{[%clk 0:02:43.7]} 18... g5 {[%clk 0:02:38.6]} 19. fxg5 {[%clk 0:02:43.6]} 19...
Ng6 {[%clk 0:02:37.5]} 20. Qf2 {[%clk 0:02:43.4]} 20... O-O {[%clk 0:02:28.1]}
21. h4 {[%clk 0:02:33.9]} 21... f6 {[%clk 0:02:26]} 22. gxf6 {[%clk 0:02:31.7]}
22... Rxf6 {[%clk 0:02:26]} 23. Qg3 {[%clk 0:02:31.5]} 23... Qf8 {[%clk
0:02:16.7]} 24. Rxf6 {[%clk 0:02:30.6]} 24... Qxf6 {[%clk 0:02:16.8]} 25. Rf1
{[%clk 0:02:27.3]} 25... Qxh4 {[%clk 0:02:07.8]} 26. Qxh4 {[%clk 0:02:26.6]}
26... Nxh4 {[%clk 0:02:08.7]} 27. Kh2 {[%clk 0:02:26.4]} 27... Ng6 {[%clk
0:02:08.1]} 28. Kg3 {[%clk 0:02:26.3]} 28... a5 {[%clk 0:02:07.7]} 29. d4 {[%clk
0:02:23.6]} 29... cxd4 {[%clk 0:02:07.8]} 30. exd4 {[%clk 0:02:24.5]} 30... Kg7
{[%clk 0:02:07.9]} 31. b4 {[%clk 0:02:18.5]} 31... axb4 {[%clk 0:02:06.6]} 32.
a5 {[%clk 0:02:18.4]} 32... Nf8 {[%clk 0:02:05.4]} 33. Rxf8 {[%clk 0:02:13.7]}
33... Kxf8 {[%clk 0:02:05.7]} 34. a6 {[%clk 0:02:13.3]} 34... c5 {[%clk
0:02:06.5]} 35. dxc5 {[%clk 0:02:11.5]} 35... dxc5 {[%clk 0:02:06.7]} 36. a7
{[%clk 0:02:11.6]} 1-0